bitfinex/quotes_SOLUSD_20250718
["timestamp","ask_amount","ask_price","bid_price","bid_amount"]
[1752829727300,0.71,179.59,179.54,51.20808048]
[1752829727703,0.71,179.59,179.54,51.91808048]
[1752829727927,12.88834217,179.59,179.54,5.56973831]
[1752829728126,12.17834217,179.57,179.53,0.03]
[1752829728515,0.71,179.56,179.53,0.03]
[1752829728716,42.49834217,179.58,179.53,0.03]
[1752829729223,42.49834217,179.58,179.53,0.74]
[1752829729419,30.32,179.58,179.54,12.88834217]
[1752829729628,0.06,179.64,179.61,26.0]
[1752829729812,0.06,179.64,179.63,45.63834217]
[1752829730204,0.06,179.64,179.63,46.34834217]
[1752829731317,0.06,179.64,179.63,61.05014129]
[1752829732812,0.06,179.64,179.63,48.87179912]
[1752829733008,0.06,179.64,179.63,61.05014129]
[1752829734730,0.06,179.64,179.63,48.87179912]
[1752829734935,0.06,179.64,179.63,61.05014129]
[1752829735299,0.06,179.64,179.63,66.61914129]
[1752829735728,1e-08,179.64,179.63,236.35316743]
[1752829736024,5.66266948,179.77,179.67,33.46]
[1752829736251,5.5633826,179.75,179.68,12.73488713]
[1752829736432,5.5633826,179.75,179.68,13.44488713]
[1752829736634,6.27299722,179.76,179.68,13.44488713]
[1752829736843,6.27299722,179.76,179.68,49.39033681]
[1752829737139,0.06,179.71,179.68,49.39033681]
[1752829738054,1e-08,179.69,179.68,99.62502078]
[1752829738544,1e-08,179.69,179.68,52.46033681]
[1752829738735,1e-08,179.69,179.68,82.80033681]
[1752829739967,1e-08,179.69,179.68,88.36933681]
[1752829740138,1e-08,179.69,179.68,82.80033681]
[1752829740333,1e-08,179.69,179.68,82.76033681]
[1752829740725,1e-08,179.69,179.68,12.17834217]
[1752829741354,0.72000001,179.69,179.65,12.17834217]
[1752829741546,12.89834218,179.69,179.64,51.70142335]
[1752829741739,12.17834217,179.67,179.61,0.55676187]
[1752829741950,12.17834217,179.65,179.6,12.17834217]
[1752829742247,0.72,179.64,179.59,0.03]
[1752829742461,12.17834217,179.65,179.59,17.77639821]
[1752829742634,12.17834217,179.68,179.62,12.17834217]
[1752829742842,0.72000001,179.69,179.64,12.17834217]
[1752829743142,0.72000001,179.69,179.66,12.17834217]
[1752829743143,1e-08,179.69,179.66,12.17834217]
[1752829743549,1e-08,179.69,179.65,12.17834217]
[1752829743729,0.72,179.68,179.63,158.51834217]
[1752829743939,0.72,179.67,179.63,158.54834217]
[1752829744444,5.56520089,179.69,179.64,12.17834217]
[1752829744652,6.28520089,179.69,179.64,12.17834217]
[1752829745252,18.46354306,179.69,179.64,12.17834217]
[1752829745559,1e-08,179.69,179.66,12.17834217]
[1752829746059,0.72,179.68,179.64,12.17834217]
[1752829746358,1e-08,179.69,179.65,12.87834217]
[1752829746556,1e-08,179.69,179.67,12.17834217]
[1752829747063,1e-08,179.69,179.67,12.87834217]
[1752829747350,1e-08,179.69,179.67,12.17834217]
[1752829747554,1e-08,179.69,179.67,17.74388262]
[1752829747856,1e-08,179.69,179.68,12.17834217]
[1752829748226,1e-08,179.69,179.67,0.7]
[1752829748430,1e-08,179.69,179.66,164.08438301]
[1752829748626,1e-08,179.69,179.68,12.17834217]
[1752829749434,1e-08,179.69,179.66,146.34]
[1752829749658,1e-08,179.69,179.66,158.51834217]
[1752829750049,1e-08,179.69,179.67,12.17834217]
[1752829750362,1e-08,179.69,179.67,12.87834217]
[1752829750563,1e-08,179.69,179.68,12.17834217]
[1752829751357,1e-08,179.69,179.68,12.87834217]
[1752829751744,1e-08,179.69,179.68,18.44379185]
[1752829752945,1e-08,179.69,179.68,17.74379185]
[1752829753460,1e-08,179.69,179.68,6.26544968]
[1752829753639,1e-08,179.69,179.68,18.44379185]
[1752829753838,1e-08,179.69,179.67,205.74]
[1752829754038,1e-08,179.69,179.67,217.91834217]
[1752829754249,0.72000001,179.69,179.67,146.34]
[1752829755247,1e-08,179.69,179.67,146.34]
[1752829756467,1e-08,179.69,179.65,12.17834217]
[1752829756649,0.72000001,179.69,179.65,12.17834217]
[1752829756849,1e-08,179.69,179.64,184.51834217]
[1752829757056,0.72,179.68,179.64,38.17834217]
[1752829757581,1e-08,179.69,179.65,12.17834217]
[1752829758067,1e-08,179.69,179.65,17.74459075]
[1752829758646,1e-08,179.69,179.68,12.17834217]
[1752829758866,1e-08,179.69,179.68,45.57834217]
[1752829759078,1e-08,179.69,179.68,46.13488713]
[1752829759245,1e-08,179.69,179.68,46.83488713]
[1752829760245,1e-08,179.69,179.68,52.40033681]
[1752829762264,0.06,179.71,179.7,26.0]
[1752829762442,0.06,179.71,179.7,102.19482519]
[1752829762642,0.06,179.71,179.7,102.89482519]
[1752829763169,0.06,179.71,179.7,249.23482519]
[1752829763467,1e-08,179.71,179.7,119.12302614]
[1752829763871,0.06,179.73,179.72,59.4]
[1752829764050,0.06,179.73,179.72,236.33642108]
[1752829764252,0.06,179.73,179.72,242.04421098]
[1752829764468,0.06,179.73,179.72,254.22255315]
[1752829765566,56.676593,179.85,179.72,254.22255315]
[1752829765567,0.72,179.83,179.76,33.4]
[1752829765872,0.72,179.83,179.79,12.17834217]
[1752829766249,0.72,179.82,179.78,12.17834217]
[1752829766451,0.72,179.81,179.78,12.17834217]
[1752829767279,30.68296253,179.88,179.79,12.17834217]
[1752829767280,18.39893329,179.84,179.79,12.17834217]
[1752829767453,0.66,179.83,179.79,12.17834217]
[1752829767780,22.34425477,179.87,179.81,12.17834217]
[1752829767964,12.83834217,179.86,179.8,12.17834217]
[1752829768162,0.66,179.85,179.79,12.17834217]
[1752829768483,12.17834217,179.84,179.79,12.17834217]
[1752829768688,0.66,179.83,179.79,12.17834217]
[1752829768884,12.83834217,179.82,179.77,45.57834217]
[1752829769183,12.83834217,179.82,179.79,1.0]
[1752829769184,0.66,179.81,179.79,1.0]
[1752829769558,5.5613559,179.82,179.79,1.0]
[1752829769775,17.44468397,179.88,179.81,12.17834217]
[1752829770075,17.44468397,179.88,179.8,0.71]
[1752829770076,12.17834217,179.87,179.8,0.71]
[1752829770262,12.17834217,179.86,179.81,12.17834217]
[1752829770460,0.66,179.85,179.81,12.17834217]
[1752829770879,12.83834217,179.87,179.82,12.17834217]
[1752829771172,12.33834217,179.87,179.82,12.17834217]
[1752829771473,17.89821928,179.87,179.82,12.17834217]
[1752829771774,16.78468397,179.85,179.79,1.0]
[1752829771975,12.17834217,179.82,179.79,1.0]
[1752829772475,12.17834217,179.83,179.79,1.0]
[1752829772670,0.66,179.81,179.79,1.0]
[1752829772873,0.66,179.8,179.79,1.0]
[1752829773264,12.83834217,179.8,179.79,1.0]
[1752829773465,18.40007743,179.8,179.79,1.0]
[1752829774072,18.40007743,179.8,179.7,12.17834217]
[1752829774073,16.78468397,179.79,179.7,12.17834217]
[1752829774273,12.17834217,179.75,179.7,12.17834217]
[1752829774788,0.66,179.74,179.7,12.17834217]
[1752829775100,12.83834217,179.74,179.69,12.17834217]
[1752829775272,16.78468397,179.77,179.7,12.17834217]
[1752829775471,12.17834217,179.76,179.71,12.17834217]
[1752829775791,5.56328233,179.75,179.71,12.17834217]
[1752829775959,17.7416245,179.75,179.68,0.03]
[1752829776160,0.66,179.74,179.7,12.17834217]
[1752829776880,0.66,179.74,179.68,146.36999999]
[1752829777086,12.83834217,179.74,179.68,158.54834216]
[1752829777468,12.83834217,179.74,179.69,12.17834217]
[1752829777673,5.5639014,179.73,179.69,12.17834217]
[1752829778085,5.5639014,179.73,179.69,12.88834217]
[1752829778595,5.5639014,179.73,179.68,0.03]
[1752829778596,12.17834217,179.7,179.68,0.03]
[1752829778903,12.17834217,179.69,179.63,0.03]
[1752829779090,12.17834217,179.64,179.63,0.03]
[1752829779590,18.4050311,179.64,179.63,0.03]
[1752829780165,6.22668893,179.64,179.63,0.03]
[1752829780394,18.4050311,179.64,179.63,0.03]
[1752829780598,35.18971507,179.64,179.63,0.03]
[1752829780880,35.18971507,179.64,179.59,0.03]
[1752829780881,49.1064374,179.64,179.59,0.03]
[1752829781087,12.17834217,179.61,179.59,0.03]
[1752829781462,12.17834217,179.6,179.59,0.03]
[1752829781662,48.2862709,179.6,179.59,0.03]
[1752829781866,65.07095487,179.6,179.59,0.03]
[1752829782191,16.78468397,179.59,179.55,0.03]
[1752829782389,12.17834217,179.56,179.55,0.03]
[1752829782687,42.71834217,179.56,179.55,0.03]
[1752829783775,48.28751124,179.56,179.55,0.03]
[1752829784299,65.07219521,179.56,179.55,0.03]
[1752829785503,52.89385304,179.56,179.55,0.03]
[1752829785674,65.07219521,179.56,179.55,0.03]
[1752829786696,42.03834217,179.57,179.55,0.03]
[1752829786999,12.68834217,179.56,179.55,0.03]
[1752829787198,29.86,179.57,179.55,1.660761]
[1752829787495,42.03834217,179.57,179.55,1.660761]
[1752829787699,35.42792873,179.6,179.56,12.17834217]
[1752829787899,35.42792873,179.6,179.56,12.88834217]
[1752829788069,35.42792873,179.6,179.56,0.71]
[1752829788271,48.1162709,179.6,179.55,13.83910317]
[1752829788674,35.93792873,179.6,179.55,13.83910317]
[1752829788875,12.17834217,179.58,179.55,1.660761]
[1752829789097,29.84,179.57,179.55,1.660761]
[1752829789394,42.52834217,179.57,179.55,1.660761]
[1752829790007,12.17834217,179.56,179.55,1.660761]
[1752829790204,42.52834217,179.57,179.55,1.660761]
[1752829790789,35.40913681,179.57,179.55,1.660761]
[1752829790998,47.58747898,179.57,179.55,1.660761]
[1752829791391,12.68834217,179.56,179.55,1.660761]
[1752829792788,18.25751124,179.56,179.55,1.660761]
[1752829793807,17.74751124,179.56,179.55,1.660761]
[1752829794105,47.58725046,179.57,179.55,1.660761]
[1752829794308,35.40890829,179.57,179.55,1.660761]
[1752829794907,35.40890829,179.57,179.55,2.370761]
[1752829795293,35.40890829,179.57,179.55,1.660761]
[1752829795681,29.84,179.57,179.55,1.660761]
[1752829795986,35.40890903,179.57,179.55,1.660761]
[1752829796388,47.5872512,179.57,179.55,1.660761]
[1752829797000,35.40890903,179.57,179.55,1.660761]
[1752829797212,29.84,179.57,179.56,0.67]
[1752829797505,35.40885894,179.57,179.55,1.660761]
[1752829798005,12.87834217,179.56,179.55,1.660761]
[1752829798511,0.7,179.56,179.55,1.660761]
[1752829798802,35.40885894,179.57,179.55,1.660761]
[1752829799885,12.17834217,179.56,179.55,1.660761]
[1752829800308,12.87834217,179.56,179.55,1.660761]
[1752829800512,12.17834217,179.56,179.55,1.660761]
[1752829800696,29.84,179.57,179.55,2.330761]
[1752829801007,5.56706865,179.63,179.56,12.17834217]
[1752829801322,29.7,179.62,179.59,12.17834217]
[1752829801493,29.7,179.62,179.6,0.67]
[1752829801689,29.7,179.62,179.57,1.5826]
[1752829801906,12.87834217,179.61,179.57,1.5826]
[1752829802101,29.7,179.6,179.58,12.84834217]
[1752829802303,29.7,179.6,179.58,0.67]
[1752829802691,29.7,179.6,179.56,12.17834217]
[1752829802885,29.7,179.6,179.55,154.37976099]
[1752829802886,17.74658093,179.59,179.55,1.660761]
[1752829803199,29.7,179.58,179.55,14.50910317]
[1752829803395,29.7,179.58,179.55,2.330761]
[1752829803812,29.7,179.58,179.55,14.50910317]
[1752829804013,29.7,179.58,179.56,0.67]
[1752829804316,5.56799793,179.6,179.56,0.67]
[1752829804317,29.7,179.6,179.57,12.17834217]
[1752829804623,29.7,179.6,179.57,12.84834217]
[1752829804790,29.7,179.6,179.58,0.67]
[1752829804991,5.56709215,179.63,179.59,12.17834217]
[1752829805235,29.68,179.62,179.6,12.84834217]
[1752829805393,24.48578061,179.67,179.6,12.84834217]
[1752829805394,0.06,179.63,179.61,12.84834217]
[1752829805587,0.06,179.63,179.62,12.17834217]
[1752829805792,0.06,179.63,179.62,12.84834217]
[1752829806189,0.06,179.63,179.62,38.84834217]
[1752829806390,29.68,179.69,179.62,38.84834217]
[1752829806596,35.24527446,179.69,179.65,12.17834217]
[1752829806799,29.68,179.69,179.65,12.84834217]
[1752829807003,16.78468397,179.71,179.67,12.17834217]
[1752829807215,46.44468397,179.71,179.68,0.67]
[1752829807538,0.7,179.75,179.7,12.17834217]
[1752829807539,5.56388905,179.74,179.7,12.17834217]
[1752829807724,29.66,179.74,179.71,12.17834217]
[1752829808022,16.78468397,179.73,179.71,12.84834217]
[1752829808718,16.78468397,179.76,179.72,12.84834217]
[1752829808907,18.44147734,179.76,179.71,12.17834217]
[1752829809111,47.40107462,179.77,179.72,12.84834217]
[1752829809419,16.78468397,179.76,179.72,12.84834217]
[1752829809998,29.66302614,179.76,179.71,12.17834217]
[1752829810195,29.66302614,179.76,179.69,7.84529283]
[1752829810402,17.48468397,179.76,179.71,12.17834217]
[1752829810701,16.78468397,179.74,179.7,12.17834217]
[1752829810909,16.78468397,179.74,179.71,12.17834217]
[1752829811298,16.84468397,179.74,179.71,12.17834217]
[1752829811504,17.54468397,179.74,179.69,1.6102]
[1752829811698,47.18468397,179.74,179.7,12.17834217]
[1752829811929,47.18468397,179.74,179.68,32.6634]
[1752829811930,16.78468397,179.71,179.68,6.6634]
[1752829812102,46.40468397,179.71,179.65,1.5932]
[1752829812302,46.40468397,179.71,179.66,12.17834217]
[1752829812601,46.40468397,179.71,179.68,12.17834217]
[1752829812813,29.62,179.73,179.69,0.67]
[1752829813011,22.34903199,179.72,179.69,0.67]
[1752829813200,22.34903199,179.72,179.68,12.17834217]
[1752829813722,16.78468397,179.72,179.69,0.67]
[1752829814227,22.34899457,179.72,179.68,12.17834217]
[1752829814426,16.78468397,179.72,179.68,12.17834217]
[1752829814615,16.78468397,179.72,179.69,12.84834217]
[1752829816401,16.78468397,179.72,179.67,26.0]
[1752829816402,16.78468397,179.72,179.7,12.84834217]
[1752829816705,5.62360724,179.74,179.71,0.67]
[1752829816915,18.50194941,179.74,179.69,12.17834217]
[1752829817310,18.50194941,179.74,179.69,12.84834217]
[1752829817516,17.80194941,179.74,179.7,0.67]
[1752829817826,17.80194941,179.74,179.68,17.74369908]
[1752829818131,5.62360724,179.74,179.68,18.41369908]
[1752829818331,17.80194941,179.74,179.68,18.41369908]
[1752829818538,17.80194941,179.74,179.68,12.84834217]
[1752829819022,17.80194941,179.74,179.68,18.41373019]
[1752829819326,17.80194941,179.74,179.68,12.84834217]
[1752829819722,17.80194941,179.74,179.69,12.17834217]
[1752829819920,28.96302614,179.73,179.69,0.67]
[1752829820125,28.96302614,179.73,179.68,17.74734217]
[1752829820437,0.06,179.74,179.7,33.4]
[1752829820609,16.84468397,179.74,179.72,12.17834217]
[1752829820812,22.40833009,179.74,179.7,33.4]
[1752829821021,29.02302614,179.74,179.7,33.4]
[1752829821226,34.58666626,179.74,179.7,0.67]
[1752829821428,16.78468397,179.72,179.68,158.51834216]
[1752829821632,16.78468397,179.72,179.69,0.67]
[1752829822007,16.78468397,179.72,179.68,12.17834217]
[1752829822207,12.17834217,179.72,179.67,217.91834216]
[1752829822425,12.17834217,179.72,179.68,0.67]
[1752829822648,0.06,179.74,179.71,12.17834217]
[1752829822807,0.06,179.74,179.72,12.17834217]
[1752829823208,0.06,179.74,179.71,0.55645206]
[1752829823422,0.06,179.74,179.71,12.84834217]
[1752829823943,16.84468397,179.74,179.69,39.63485756]
[1752829824243,16.84468397,179.74,179.7,12.84834217]
[1752829824419,16.84468397,179.74,179.71,12.17834217]
[1752829824733,16.84468397,179.74,179.71,12.84834217]
[1752829825136,16.84468397,179.74,179.72,0.67]
[1752829825337,0.06,179.74,179.73,0.67]
[1752829825508,0.06,179.74,179.73,12.84834217]
[1752829825713,0.06,179.74,179.73,0.67]
[1752829827011,0.06,179.74,179.73,12.84834217]
[1752829827228,0.06,179.74,179.73,18.41224357]
[1752829827938,0.06,179.74,179.73,0.67]
[1752829828135,0.06,179.74,179.73,12.17834217]
[1752829828455,0.06,179.74,179.72,6.0859]
[1752829828811,0.06,179.74,179.72,18.26424217]
[1752829829018,0.06,179.74,179.72,18.93424217]
[1752829829413,0.06,179.74,179.72,18.26424217]
[1752829829735,0.06,179.74,179.72,18.93424217]
[1752829830141,0.06,179.74,179.71,209.25999999]
[1752829830337,16.78468397,179.73,179.69,45.57834217]
[1752829830517,12.85834217,179.73,179.68,194.12524216]
[1752829830708,17.46468397,179.73,179.69,12.17834217]
[1752829830927,16.78468397,179.73,179.7,0.67]
[1752829831237,5.56421099,179.72,179.7,0.67]
[1752829831642,5.56421099,179.72,179.68,182.61689999]
[1752829831828,5.56421099,179.72,179.69,12.84834217]
[1752829832032,22.34873577,179.73,179.7,0.67]
[1752829832331,16.84468397,179.74,179.71,12.84834217]
[1752829832642,16.84468397,179.74,179.73,12.17834217]
[1752829832837,0.06,179.74,179.72,0.67]
[1752829833143,0.06,179.74,179.73,0.67]
[1752829833528,0.06,179.74,179.73,12.84834217]
[1752829834141,0.06,179.74,179.72,42.23476326]
[1752829834452,0.06,179.74,179.72,29.5]
[1752829834652,0.06,179.74,179.72,41.67834217]
[1752829834849,0.06,179.74,179.72,42.34834217]
[1752829835222,0.06,179.74,179.73,12.17834217]
[1752829835421,0.06,179.74,179.73,12.84834217]
[1752829837351,0.06,179.74,179.73,18.41224357]
[1752829837952,0.06,179.74,179.73,12.84834217]
[1752829838157,0.06,179.74,179.73,42.34834217]
[1752829838333,0.06,179.74,179.72,12.73476326]
[1752829838754,0.06,179.74,179.71,209.23999999]
[1752829838949,0.06,179.74,179.71,221.41834216]
[1752829839124,0.06,179.74,179.71,46.24834217]
[1752829840028,0.06,179.74,179.72,0.67]
[1752829840624,0.06,179.74,179.73,0.67]
[1752829840826,0.06,179.74,179.73,12.84834217]
[1752829841922,0.06,179.74,179.72,41.67834217]
[1752829842147,0.06,179.74,179.72,30.17]
[1752829842452,0.06,179.74,179.73,12.84834217]
[1752829842822,0.06,179.74,179.73,0.67]
[1752829843049,0.06,179.74,179.73,12.84834217]
[1752829843636,0.06,179.74,179.73,42.34834217]
[1752829844951,0.06,179.74,179.73,37.76825822]
[1752829845341,0.06,179.74,179.73,223.62854975]
[1752829845530,0.06,179.74,179.73,224.69915961]
[1752829846321,0.06,179.74,179.73,230.26815961]
[1752829846551,0.06,179.74,179.73,224.69915961]
[1752829847445,0.06,179.74,179.73,236.59135961]
[1752829847633,0.06,179.74,179.73,231.02235961]
[1752829847833,0.06,179.74,179.73,193.92410139]
[1752829848039,0.06,179.74,179.73,231.02235961]
[1752829848932,0.06,179.74,179.73,223.42410139]
[1752829849132,0.06,179.74,179.73,231.02235961]
[1752829854132,0.06,179.74,179.73,201.52235961]
[1752829854350,0.06,179.74,179.73,231.00235961]
[1752829858455,0.06,179.76,179.75,33.4]
[1752829858659,0.06,179.76,179.75,71.03458645]
[1752829859041,0.06,179.76,179.75,76.59786878]
[1752829860378,0.06,179.78,179.77,59.4]
[1752829860542,0.06,179.78,179.77,97.03452456]
[1752829861363,0.06,179.78,179.77,102.59718796]
[1752829861936,0.06,179.78,179.77,33.95626634]
[1752829862171,0.06,179.78,179.75,8.15458645]
[1752829862344,0.06,179.78,179.76,62.88]
[1752829862545,0.06,179.78,179.76,96.47825822]
[1752829862744,0.06,179.78,179.77,7.59825822]
[1752829863172,0.06,179.78,179.76,88.88]
[1752829863343,0.06,179.78,179.77,7.59825822]
[1752829863740,0.06,179.78,179.76,96.47825822]
[1752829863981,0.76,179.78,179.76,88.88]
[1752829864269,0.7,179.77,179.76,62.88]
[1752829864643,0.7,179.77,179.76,33.4]
[1752829864846,0.06,179.78,179.76,62.88]
[1752829865468,0.06,179.78,179.77,41.66825822]
[1752829865668,0.06,179.78,179.77,188.50452455]
[1752829865966,0.06,179.82,179.81,59.4]
[1752829866150,0.06,179.82,179.81,213.8344008]
[1752829866473,0.06,179.82,179.81,243.42825821]
[1752829866644,0.06,179.82,179.81,213.94825821]
[1752829866946,0.06,179.82,179.81,243.42825821]
[1752829867271,0.06,179.82,179.81,248.98968415]
[1752829868362,0.06,179.82,179.81,205.67999999]
[1752829868567,0.06,179.82,179.81,96.45825822]
[1752829868777,0.06,179.82,179.81,108.25868416]
[1752829868950,0.06,179.82,179.81,103.24582675]
[1752829869339,0.06,179.82,179.81,108.81482675]
[1752829870564,0.06,179.82,179.81,103.24582675]
[1752829870771,0.06,179.82,179.81,95.64756853]
[1752829871091,0.06,179.82,179.81,103.24582675]
[1752829871567,0.06,179.82,179.81,88.86]
[1752829871746,0.76,179.82,179.81,29.46]
[1752829871945,0.06,179.82,179.81,29.46]
[1752829872477,0.06,179.82,179.81,71.01440081]
[1752829872682,0.06,179.82,179.81,217.2944008]
[1752829872851,0.06,179.82,179.81,222.29968415]
[1752829873048,0.06,179.82,179.81,209.13999999]
[1752829874046,0.06,179.82,179.81,222.29968415]
[1752829874245,0.76,179.86,179.85,40.50398904]
[1752829874246,0.06,179.86,179.85,40.50398904]
[1752829874455,0.06,179.86,179.85,71.01427712]
[1752829874965,0.06,179.86,179.85,77.25327712]
[1752829875360,0.06,179.86,179.85,33.9560189]
[1752829875547,0.06,179.86,179.85,70.49825822]
[1752829877487,0.06,179.86,179.85,62.9]
[1752829877691,0.06,179.86,179.85,70.49825822]
[1752829878672,0.06,179.86,179.85,76.05844726]
[1752829878971,0.06,179.86,179.85,71.05427712]
[1752829879150,0.06,179.86,179.85,222.89446615]
[1752829879346,0.06,179.86,179.85,222.33844725]
[1752829879757,0.06,179.86,179.85,227.90744725]
[1752829880473,0.06,179.86,179.85,223.00844725]
[1752829882251,0.1,179.94,179.9,1.5728]
[1752829882458,0.1,179.94,179.92,59.4]
[1752829882780,0.7,179.93,179.92,29.52]
[1752829882975,0.7,179.93,179.91,29.52]
[1752829883180,16.78468397,179.93,179.89,59.4]
[1752829883384,0.7,179.92,179.9,29.52]
[1752829883681,0.7,179.93,179.91,7.59825822]
[1752829883852,0.7,179.93,179.9,29.52]
[1752829884053,0.7,179.92,179.9,29.52]
[1752829885976,0.7,179.92,179.9,29.48]
[1752829886966,0.7,179.92,179.89,91.69298386]
[1752829887171,0.7,179.92,179.89,99.29124208]
[1752829887582,0.7,179.92,179.89,91.69298386]
[1752829887885,13.15601716,179.93,179.89,91.69298386]
[1752829888094,0.7,179.91,179.88,146.27999999]
[1752829888272,0.7,179.9,179.88,29.46]
[1752829888465,16.78468397,179.92,179.88,29.46]
[1752829888692,0.7,179.91,179.88,29.46]
[1752829888906,0.7,179.91,179.88,37.05825822]
[1752829889269,16.78468397,179.92,179.88,37.05825822]
[1752829889774,0.7,179.91,179.88,37.05825822]
[1752829890126,24.38294219,179.92,179.88,29.46]
[1752829890402,0.7,179.91,179.88,29.46]
[1752829891100,16.78468397,179.92,179.88,37.05825822]
[1752829891275,25.08294219,179.92,179.88,29.46]
[1752829891475,0.7,179.91,179.88,29.46]
[1752829891675,8.29825822,179.9,179.87,237.92259733]
[1752829891984,0.7,179.89,179.87,201.73999999]
[1752829892301,0.7,179.89,179.87,55.46]
[1752829893285,16.78468397,179.9,179.87,55.46]
[1752829893489,17.48468397,179.9,179.87,55.46]
[1752829894183,23.04337693,179.9,179.87,55.46]
[1752829894872,17.48468397,179.9,179.87,55.46]
[1752829895074,16.78468397,179.91,179.87,63.05825822]
[1752829895273,0.7,179.92,179.87,102.01778432]
[1752829895472,8.29825822,179.92,179.87,97.13825822]
[1752829895876,8.29825822,179.92,179.87,102.69779237]
[1752829896079,16.78468397,179.92,179.88,8.27825822]
[1752829896309,16.78468397,179.92,179.89,29.44]
[1752829896679,7.59825822,179.93,179.89,29.44]
[1752829896878,13.85600577,179.93,179.89,29.44]
[1752829897289,6.25774755,179.93,179.89,29.44]
[1752829897686,13.85600577,179.93,179.89,29.44]
[1752829897989,0.7,179.92,179.89,29.44]
[1752829898210,13.15600577,179.93,179.89,29.44]
[1752829898502,13.15599606,179.93,179.89,30.12]
[1752829898871,0.7,179.92,179.89,29.44]
[1752829899406,13.21599606,179.93,179.89,29.44]
[1752829899701,7.59825822,179.92,179.89,29.44]
[1752829899887,0.7,179.92,179.89,29.44]
[1752829900593,13.21599606,179.93,179.89,29.44]
[1752829901098,13.91599606,179.93,179.89,29.44]
[1752829901404,0.06,179.93,179.9,41.67825822]
[1752829901596,0.06,179.93,179.91,29.44]
[1752829902176,0.06,179.93,179.92,0.68]
[1752829902380,0.06,179.93,179.92,187.95825821]
[1752829902589,0.06,179.93,179.92,180.35999999]
[1752829903405,0.06,179.93,179.92,193.51628399]
[1752829903578,0.06,179.93,179.92,187.95825821]
[1752829903781,0.06,179.93,179.92,62.84]
[1752829905208,0.06,179.93,179.92,63.52]
[1752829905407,0.06,179.93,179.92,62.84]
[1752829906509,0.06,179.93,179.92,63.52]
[1752829906685,0.06,179.93,179.92,62.84]
[1752829906890,0.06,179.93,179.92,29.44]
[1752829907107,16.84468397,179.93,179.9,172.27999999]
[1752829907412,16.84468397,179.93,179.91,29.44]
[1752829908005,0.06,179.93,179.91,29.44]
[1752829908384,0.06,179.93,179.92,41.67825822]
[1752829908591,0.06,179.93,179.92,73.79208657]
[1752829908801,0.06,179.93,179.92,220.07208656]
[1752829909007,0.06,179.93,179.92,219.51628399]
[1752829910385,0.06,179.93,179.92,193.51628399]
[1752829910786,0.06,179.93,179.92,47.236284]
[1752829911003,0.06,179.93,179.92,47.79208657]
[1752829911198,0.06,179.93,179.92,194.07208656]
[1752829911413,0.06,179.93,179.92,222.95628399]
[1752829911594,0.06,179.93,179.92,215.35802577]
[1752829911792,0.06,179.93,179.92,222.95628399]
[1752829911998,0.06,179.93,179.92,76.676284]
[1752829912200,0.06,179.93,179.92,77.23208657]
[1752829912414,0.06,179.93,179.92,69.63382835]
[1752829912716,0.06,179.93,179.92,77.23208657]
[1752829912900,0.06,179.93,179.92,69.07802578]
[1752829913095,0.06,179.93,179.92,77.23208657]
[1752829915296,0.06,179.93,179.92,82.80108657]
[1752829915703,0.06,179.93,179.92,77.23208657]
[1752829915901,0.06,179.93,179.92,69.63382835]
[1752829916120,0.06,179.93,179.92,69.07802578]
[1752829916288,0.06,179.93,179.92,69.05802578]
[1752829916613,0.06,179.93,179.92,88.82]
[1752829916990,0.06,179.93,179.92,59.4]
[1752829917191,16.84468397,179.93,179.92,29.42]
[1752829917722,0.06,179.93,179.92,29.42]
[1752829918103,16.84468397,179.93,179.92,29.42]